Workbook

Sheet Evaluation (hidden)
C4: Offer / Plant / Year | D4: Mine | E4: Quantity | G4: Coal Price | H4: Transportation | K4: Offered Quality | O4: Quality Adjusted Delivered Pricing
E5: Tons | F5: BTU | G5: Coal Price | H5: River / Rail | I5: MP / District | J5: Rate | K5: Btu | L5: lbs. SO2 | M5: Sulfur % | N5: Ash % | O5: Quality Adj. | P5: Quality Adjusted | Q5: Delivered | R5: Comments
C6: 2020 | P6: Delivered Cost | Q6: $MMBTU
J7: =GETPIVOTDATA("ROUND(AVG(RATE),2)",#REF!,"PILE",$C$5,"ORIGIN",I7,"EXTRACT(YEARFROMMONTH)",$C$6) ->  | O7: =+((1-$E$12)*(L7*K7*$E$13)/1000000)+(($E$12*L7*K7*$E$14)/1000000) ->  | P7: =G7+J7+O7 ->  | Q7: =P7/(K7/500) -> 
C11: =IF(ISNA(VLOOKUP(C5,Pile,2,0)),"",VLOOKUP(C5,Pile,2,0)) -> 
C12: FGD Removal Efficiency | E12: =IF(ISNA(VLOOKUP(C11,FGD,2,0)),0,VLOOKUP(C11,FGD,2,0)) -> 
C13: SO2 Allowance Cost | E13: =SO2_Credit -> 
C14: Removal Cost $/Ton | E14: =IF(ISNA(VLOOKUP(C11,FGD,3,0)),0,VLOOKUP(C11,FGD,3,0)) -> 
C15: Highly Sensitive and Confidential

Sheet Mitchell High Sulfur 2025
B1: Mitchell High Sulfur - 2025 NAPP
C4: Offer / Plant / Year | D4: Mine | E4: Quantity | G4: Coal Price | H4: Transportation | K4: Offered Quality | O4: Quality Adjusted Delivered Pricing
C5: Mitchell High Sulfur | E5: Tons | F5: BTU | G5: Coal Price | H5: River / Rail | I5: MP / District | J5: Rate | K5: Btu | L5: lbs. SO2 | M5: Sulfur % | N5: Ash % | O5: Quality Adj. | P5: Quality Adjusted | Q5: Delivered | R5: Comments
C6: 2025 | P6: Delivered Cost | Q6: $MMBTU
C16: Mitchell
C17: FGD Removal Efficiency | E17: 0.9829
C18: SO2 Allowance Cost | E18: 1.5
C19: Removal Cost $/Ton | E19: 194.31

Sheet Mitchell High Sulfur 2024
B1: Mitchell High Sulfur - 2024 NAPP
C4: Offer / Plant / Year | D4: Mine | E4: Quantity | G4: Coal Price | H4: Transportation | K4: Offered Quality | O4: Quality Adjusted Delivered Pricing
C5: Mitchell High Sulfur | E5: Tons | F5: BTU | G5: Coal Price | H5: River / Rail | I5: MP / District | J5: Rate | K5: Btu | L5: lbs. SO2 | M5: Sulfur % | N5: Ash % | O5: Quality Adj. | P5: Quality Adjusted | Q5: Delivered | R5: Comments
C6: 2024 | P6: Delivered Cost | Q6: $MMBTU
C9: Argus 04.14.22 | D9: Pittsburgh Seam | F9: 12500 | G9: 85 | H9: Barge | I9: Ireland Dock LO - Cresap, WV | J9: 0.94 | K9: 12500 | L9: 6 | O9: =+((1-$E$17)*(L9*K9*$E$18)/1000000)+(($E$17*L9*K9*$E$19)/1000000) -> 14.32597118 | P9: =G9+J9+O9 -> 100.2659712 | Q9: =P9/(K9/500) -> 4.010638847 | R9: Market Publication Pricing
C16: Mitchell
C17: FGD Removal Efficiency | E17: 0.9829
C18: SO2 Allowance Cost | E18: 1.5
C19: Removal Cost $/Ton | E19: 194.31

Sheet Mitchell High Sulfur 2023
B1: Mitchell High Sulfur - 2023 NAPP
C4: Offer / Plant / Year | D4: Mine | E4: Quantity | G4: Coal Price | H4: Transportation | K4: Offered Quality | O4: Quality Adjusted Delivered Pricing
C5: Mitchell High Sulfur | E5: Tons | F5: BTU | G5: Coal Price | H5: River / Rail | I5: MP / District | J5: Rate | K5: Btu | L5: lbs. SO2 | M5: Sulfur % | N5: Ash % | O5: Quality Adj. | P5: Quality Adjusted | Q5: Delivered | R5: Comments
C6: 2023 | P6: Delivered Cost | Q6: $MMBTU
C7: Argus 04.14.22 | D7: Pittsburgh Seam | F7: 12500 | G7: 90 | H7: Barge | I7: Ireland Dock LO - Cresap, WV | J7: 0.88 | K7: 12500 | L7: 6 | O7: =+((1-$E$15)*(L7*K7*$E$16)/1000000)+(($E$15*L7*K7*$E$17)/1000000) -> 14.32597118 | P7: =G7+J7+O7 -> 105.2059712 | Q7: =P7/(K7/500) -> 4.208238847 | R7: Market Publication Pricing
C14: Mitchell
C15: FGD Removal Efficiency | E15: 0.9829
C16: SO2 Allowance Cost | E16: 1.5
C17: Removal Cost $/Ton | E17: 194.31

Sheet Mitchell High Sulfur 2022
B1: Mitchell High Sulfur - 2022 NAPP
C4: Offer / Plant / Year | D4: Mine | E4: Quantity | G4: Coal Price | H4: Transportation | K4: Offered Quality | O4: Quality Adjusted Delivered Pricing
C5: Mitchell High Sulfur | E5: Tons | F5: BTU | G5: Coal Price | H5: River / Rail | I5: MP / District | J5: Rate | K5: Btu | L5: lbs. SO2 | M5: Sulfur % | N5: Ash % | O5: Quality Adj. | P5: Quality Adjusted | Q5: Delivered | R5: Comments
C6: 2022 | P6: Delivered Cost | Q6: $MMBTU
C8: Argus 04.14.22 | D8: Pittsburgh Seam | F8: 12500 | G8: 120 | H8: Barge | I8: Ireland Dock LO - Cresap, WV | J8: 0.84 | K8: 12500 | L8: 6 | O8: =+((1-$E$14)*(L8*K8*$E$15)/1000000)+(($E$14*L8*K8*$E$16)/1000000) -> 14.32597118 | P8: =G8+J8+O8 -> 135.1659712 | Q8: =P8/(K8/500) -> 5.406638847 | R8: Market Publication Pricing
C13: Mitchell
C14: FGD Removal Efficiency | E14: 0.9829
C15: SO2 Allowance Cost | E15: 1.5
C16: Removal Cost $/Ton | E16: 194.31

Sheet Mitchell Low Sulfur 2025
B1: Mitchell Low Sulfur - 2025 CAPP
C4: Offer / Plant / Year | D4: Mine | E4: Quantity | G4: Coal Price | H4: Transportation | K4: Offered Quality | O4: Quality Adjusted Delivered Pricing
C5: Mitchell Low Sulfur | E5: Tons | F5: BTU | G5: Coal Price | H5: River / Rail | I5: MP / District | J5: Rate | K5: Btu | L5: lbs. SO2 | M5: Sulfur % | N5: Ash % | O5: Quality Adj. | P5: Quality Adjusted | Q5: Delivered | R5: Comments
C6: 2025 | P6: Delivered Cost | Q6: $MMBTU
C13: Mitchell
C14: FGD Removal Efficiency | E14: 0.9829
C15: SO2 Allowance Cost | E15: 1.5
C16: Removal Cost $/Ton | E16: 194.31

Sheet Mitchell Low Sulfur 2024
B1: Mitchell Low Sulfur - 2024 CAPP
C4: Offer / Plant / Year | D4: Mine | E4: Quantity | G4: Coal Price | H4: Transportation | K4: Offered Quality | O4: Quality Adjusted Delivered Pricing
C5: Mitchell Low Sulfur | E5: Tons | F5: BTU | G5: Coal Price | H5: River / Rail | I5: MP / District | J5: Rate | K5: Btu | L5: lbs. SO2 | M5: Sulfur % | N5: Ash % | O5: Quality Adj. | P5: Quality Adjusted | Q5: Delivered | R5: Comments
C6: 2024 | P6: Delivered Cost | Q6: $MMBTU
C7: Argus 04.14.22 | D7: Nymex Barge | F7: 12000 | G7: 87 | H7: Barge | I7: Mammoth Dock LO - Montgomery, WV | J7: 9.1 | K7: 12000 | L7: 1.67 | O7: =+((1-$E$15)*(L7*K7*$E$16)/1000000)+(($E$15*L7*K7*$E$17)/1000000) -> 3.827899498 | P7: =G7+J7+O7 -> 99.9278995 | Q7: =P7/(K7/500) -> 4.163662479 | R7: Market Publication Pricing
C14: Mitchell
C15: FGD Removal Efficiency | E15: 0.9829
C16: SO2 Allowance Cost | E16: 1.5
C17: Removal Cost $/Ton | E17: 194.31

Sheet Mitchell Low Sulfur 2023
B1: Mitchell Low Sulfur - 2023 CAPP
C4: Offer / Plant / Year | D4: Mine | E4: Quantity | G4: Coal Price | H4: Transportation | K4: Offered Quality | O4: Quality Adjusted Delivered Pricing
C5: Mitchell Low Sulfur | E5: Tons | F5: BTU | G5: Coal Price | H5: River / Rail | I5: MP / District | J5: Rate | K5: Btu | L5: lbs. SO2 | M5: Sulfur % | N5: Ash % | O5: Quality Adj. | P5: Quality Adjusted | Q5: Delivered | R5: Comments
C6: 2023 | P6: Delivered Cost | Q6: $MMBTU
C7: Argus 04.14.22 | D7: Nymex Barge | F7: 12000 | G7: 96 | H7: Barge | I7: Mammoth Dock LO - Montgomery, WV | J7: 8.75 | K7: 12000 | L7: 1.67 | O7: =+((1-$E$18)*(L7*K7*$E$19)/1000000)+(($E$18*L7*K7*$E$20)/1000000) -> 3.827899498 | P7: =G7+J7+O7 -> 108.5778995 | Q7: =P7/(K7/500) -> 4.524079146 | R7: Market Publication Pricing
C17: Mitchell
C18: FGD Removal Efficiency | E18: 0.9829
C19: SO2 Allowance Cost | E19: 1.5
C20: Removal Cost $/Ton | E20: 194.31

Sheet Mitchell Low Sulfur 2022
B1: Mitchell Low Sulfur - 2022 CAPP
C4: Offer / Plant / Year | D4: Mine | E4: Quantity | G4: Coal Price | H4: Transportation | K4: Offered Quality | O4: Quality Adjusted Delivered Pricing
C5: Mitchell Low Sulfur | E5: Tons | F5: BTU | G5: Coal Price | H5: River / Rail | I5: MP / District | J5: Rate | K5: Btu | L5: lbs. SO2 | M5: Sulfur % | N5: Ash % | O5: Quality Adj. | P5: Quality Adjusted | Q5: Delivered | R5: Comments
C6: 2022 | P6: Delivered Cost | Q6: $MMBTU
C13: Argus 04.14.22 | D13: Nymex Barge | F13: 12000 | G13: 126 | H13: Barge | I13: Mammoth Dock LO - Montgomery, WV | J13: 8.41 | K13: 12000 | L13: 1.67 | O13: =+((1-$E$19)*(L13*K13*$E$20)/1000000)+(($E$19*L13*K13*$E$21)/1000000) -> 3.827899498 | P13: =G13+J13+O13 -> 138.2378995 | Q13: =P13/(K13/500) -> 5.759912479 | R13: Market Publication Pricing
C18: Mitchell
C19: FGD Removal Efficiency | E19: 0.9829
C20: SO2 Allowance Cost | E20: 1.5
C21: Removal Cost $/Ton | E21: 194.31
